Cogmind - Beta 10.1 @@@ ROGUE MODE // 2020.10.29 @ 11:32:22 Player: Shamgod Result: Destroyed by G-47 Trooper with Particle Gun Performance ------------- Evolutions (0) 0 Regions Visited (2) 400 Robots Destroyed (19) 95 Value Destroyed (472) 472 Prototype IDs (0) 0 Alien Tech Used (0) 0 Bonus (0) 0 TOTAL SCORE: 967 Bonus ------- None Cogmind --------- Core Integrity 0/250 Matter 300/300 Energy 210/250 System Corruption 0% Temperature Cool (76) Movement Treading (160) Location -10/Mines Parts ------- > --- POWER (1) -------- Ion Engine > --- PROPULSION (2) --- Light Treads Light Treads > --- UTILITY (2) ------ Large Storage Unit Large Storage Unit > --- WEAPON (2) ------- Mining Laser Mining Claw > --- INVENTORY (16) --- Light Ion Engine Light Treads Light Treads Light Treads Light Treads Light Treads Compact Wheel Compact Wheel Improved Heat Sink Structural Scanner Sensor Array Medium Laser Rocket Launcher Rocket Launcher Rocket Launcher Rocket Launcher Peak State ------------ > --- POWER ------------ Light Ion Engine > --- PROPULSION ------- Light Treads Light Treads > --- UTILITY ---------- Large Storage Unit Large Storage Unit > --- WEAPON ----------- Medium Laser Particle Gun > --- INVENTORY -------- Light Treads Light Treads Light Treads Light Treads Light Treads Compact Wheel Compact Wheel Heat Sink Improved Heat Sink Structural Scanner Sensor Array Sensor Array Small Laser Rocket Launcher [Rating: 9] Favorites ----------- Power Ion Engine Engine Ion Engine Propulsion Light Treads Treads Light Treads Wheel Compact Wheel Utility Large Storage Unit Storage Large Storage Unit Weapon Light Assault Rifle Energy Gun Particle Gun Ballistic Gun Light Assault Rifle Special Weapon Mining Laser Slashing Weapon Mining Claw Build | -11 -10 -10 ------- Run | Scr Mat Min Slots Evolved . | . . . Power . | . . . Propulsion . | . . . Utility . | . . . Weapon . | . . . Parts Attached 20 | 6 14 . Power 5 | 1 4 . Engine 5 | 1 4 . Core . | . . . Reactor . | . . . Propulsion 4 | 2 2 . Treads 3 | 1 2 . Leg . | . . . Wheel 1 | 1 . . Hover . | . . . Flight . | . . . Utility 3 | 1 2 . Device . | . . . Storage 3 | 1 2 . Processor . | . . . Hackware . | . . . Protection . | . . . Artifact . | . . . Weapon 8 | 2 6 . Energy Gun 5 | 1 4 . Energy Cannon . | . . . Ballistic Gun 1 | 1 . . Ballistic Cannon . | . . . Launcher . | . . . Special Weapon 1 | . 1 . Impact Weapon . | . . . Slashing Weapon 1 | . 1 . Piercing Weapon . | . . . Special Melee Weapon . | . . . Unidentified Prototypes . | . . . Parts Lost 7 | . 7 . Power 2 | . 2 . Propulsion 1 | . 1 . Utility . | . . . Weapon 4 | . 4 . Highest Loss Streak 4 | . 4 . Average Slot Usage (%) 93 | . 90 100 Engine 9 | . 8 14 Treads 20 | . 17 28 Wheel 7 | . 10 . Storage 27 | . 27 28 Energy Gun 13 | . 17 . Ballistic Gun 4 | . 5 . Special Weapon 3 | . . 14 Slashing Weapon 4 | . 1 14 Naked Turns . | . . . Heaviest Build 40 | 12 40 40 Greatest Support 40 | 20 40 40 Greatest Overweight (x) 1 | . 1 . Average Overweight (x) . | . . . Largest Inventory Capacity 16 | 6 16 16 Average Capacity 15 | 5 15 16 Most Carried 16 | 6 16 16 Average Carried 11 | 4 10 16 Final Capacity 16 | 6 16 16 Final Carried 16 | 5 16 16 Class Distribution -------------------- 100% | Mutant Dominant Class ---------------- Mutant | -10/Materials Mutant | -10/Mines Resources | -11 -10 -10 ----------- Run | Scr Mat Min Matter Collected 426 | 260 156 10 Remotely . | . . . Salvage Created 704 | 78 596 30 Parts 41 | 1 37 3 Haulers Intercepted 2 | . 2 . Recyclers Shooed . | . . . Parts Field Recycled . | . . . Retrieved Matter . | . . . Parts Self-Destructed . | . . . Prevented . | . . . Kills | -11 -10 -10 ------- Run | Scr Mat Min Combat Hostiles Destroyed 14 | . 13 1 Melee 1 | . 1 . Guns 12 | . 12 . Cannons 1 | . . 1 Classes Destroyed 5 | 1 4 . Hauler 2 | . 2 . Recycler 1 | 1 . . Watcher 2 | . 2 . Swarmer 3 | . 3 . Grunt 11 | . 10 1 Best Kill Streak 3 | 1 3 1 Combat Bots Only 3 | . 3 1 Max Kills in Single Turn 1 | 1 1 1 Gunslinging . | . . . Exploded . | . . . Melee 1 | . 1 . Uniques/NPCs Destroyed . | . . . Combat | -11 -10 -10 -------- Run | Scr Mat Min Damage Taken 974 | . 868 106 Core 253 | . 176 77 Absorbed by Shields . | . . . Core Remaining (%) 100 | 100 . . Volleys Fired 81 | 4 73 4 Largest 2 | 2 2 1 Hottest 115 | 60 115 100 Shots Fired 129 | 8 117 4 Gun 125 | 8 117 . Cannon . | . . . Launcher . | . . . Special 4 | . . 4 Kinetic 37 | 4 33 . Thermal 76 | . 72 4 Explosive . | . . . Electromagnetic 16 | 4 12 . Robot Hit Streak 12 | 4 12 3 Robot Miss Streak 4 | 1 4 1 Penetration Max . | . . . Secondary Targets . | . . . Shots Hit Robots 92 | 6 83 3 Core Hits 38 | 2 34 2 Critical Hits . | . . . Critical Kills . | . . . Critical Parts Destroyed . | . . . Melee Attacks . | . . . Impact . | . . . Slashing . | . . . Piercing . | . . . Sneak Attacks . | . . . Combat Hostiles . | . . . Follow-up Attacks . | . . . Damage Inflicted 1197 | 69 1054 74 Guns 1111 | 69 1042 . Cannons . | . . . Explosions . | . . . Melee . | . . . Ramming 12 | . 12 . Kinetic 159 | 26 133 . Thermal 847 | . 773 74 Explosive . | . . . Electromagnetic 179 | 43 136 . Impact . | . . . Slashing . | . . . Piercing . | . . . Highest Corruption . | . . . Average Corruption . | . . . Corruption Purged . | . . . Overload Shots . | . . . Overflow Damage . | . . . Projectiles . | . . . Explosions . | . . . Melee . | . . . Knockbacks . | . . . Impact . | . . . Kinetic . | . . . Secondary . | . . . Self-Inflicted Damage . | . . . Shots . | . . . Rammed 7 | . 7 . Targets Rammed 7 | . 7 . Kicked . | . . . Crushed . | . . . Highest Temperature 380 | 20 380 67 Average Temperature 78 | 15 83 38 Received Heat Transfer 462 | . 402 60 Effects 2 | . 2 . Shutdowns 1 | . 1 . Interference 1 | . 1 . Siege Activations . | . . . Robots Corrupted . | . . . Combat Hostiles . | . . . Parts Fried 1 | . 1 . Impact Corruptions . | . . . Robots Melted . | . . . Combat Hostiles . | . . . Parts Melted 2 | . 2 . Heat Transferred 1995 | . 1845 150 Parts Sabotaged . | . . . Parts Stolen . | . . . Parts Stripped . | . . . Power Chain Reactions . | . . . Missiles Intercepted . | . . . Alert | -11 -10 -10 ------- Run | Scr Mat Min Peak Influence 124 | 5 124 20 Initial 3 | . 3 . Average 32 | . 46 . Maximum Alert Level . | . . . Low Security (%) 100 | 100 100 100 Level 1 . | . . . Level 2 . | . . . Level 3 . | . . . Level 4 . | . . . Level 5 . | . . . High Security . | . . . Max Security . | . . . Squads Dispatched 2 | . 2 . Investigation 1 | . 1 . Extermination . | . . . Reinforcement 1 | . 1 . Assault . | . . . Garrison . | . . . Intercept . | . . . Construction Impeded . | . . . Haulers Reinforced . | . . . Stealth | -11 -10 -10 --------- Run | Scr Mat Min Distress Signals . | . . . Communications Jammed . | . . . Distress Signals . | . . . Times Spotted 20 | . 18 2 Peak Tracking Total 4 | . 4 2 Tactical Retreats . | . . . Traps | -11 -10 -10 ------- Run | Scr Mat Min Traps Triggered . | . . . Indirectly . | . . . Trap Hack Attempts . | . . . Triggered . | . . . Disarmed . | . . . Reprogrammed . | . . . Reused . | . . . Traps Extracted . | . . . Installed . | . . . Triggered . | . . . Machines | -11 -10 -10 ---------- Run | Scr Mat Min Machines Disabled . | . . . Max in Single Turn . | . . . Machines Sabotaged . | . . . Garrisons Compromised . | . . . Overloaded Fab Kills . | . . . Fab Network Shutdowns . | . . . Hacking | -11 -10 -10 --------- Run | Scr Mat Min Machines Accessed 6 | . 6 . Terminals 6 | . 6 . Fabricators . | . . . Repair Stations . | . . . Recycling Units . | . . . Scanalyzers . | . . . Garrison Access . | . . . Total Hacks 16 | . 16 . Successful 5 | . 5 . Failed 11 | . 11 . Catastrophic 1 | . 1 . Database Lockouts . | . . . Manual 13 | . 13 . Terminals 16 | . 16 . Fabricators . | . . . Repair Stations . | . . . Recycling Units . | . . . Scanalyzers . | . . . Garrison Access . | . . . Terminal Hacks 4 | . 4 . Robot Analysis 1 | . 1 . Branch Access Points 1 | . 1 . Terminal Index 1 | . 1 . Unreport Threat 1 | . 1 . Fabricator Hacks . | . . . Repair Station Hacks . | . . . Recycling Unit Hacks . | . . . Scanalyzer . | . . . Garrison Access Hacks . | . . . Unauthorized Hacks 1 | . 1 . Terminals 1 | . 1 . Botnet 1 | . 1 . Fabricators . | . . . Repair Stations . | . . . Recycling Units . | . . . Scanalyzers . | . . . Garrison Access . | . . . Data Cores Recovered . | . . . Used . | . . . Hacking Detections 5 | . 5 . Full Trace Events 3 | . 3 . Feedback Events . | . . . Feedback Blocked . | . . . Robot Schematics Acquired . | . . . Robots Built . | . . . Matter . | . . . Time . | . . . Total Robot Build Rating . | . . . Part Schematics Acquired . | . . . Parts Built . | . . . Matter . | . . . Time . | . . . Total Part Build Rating . | . . . Parts Repaired . | . . . Time . | . . . Parts Recycled . | . . . Recycled Matter . | . . . Retrieved Matter . | . . . Retrieved Components . | . . . Parts Scanalyzed . | . . . Part Schematics Acquired . | . . . Parts Damaged . | . . . Bothacking | -11 -10 -10 ------------ Run | Scr Mat Min Used RIF Installer . | . . . Robots Hacked . | . . . Non-combat . | . . . Combat . | . . . Robot Hacks Applied . | . . . Relay Couplers Released . | . . . Robots Rewired . | . . . Allies Hacked . | . . . Hacks Repelled . | . . . Allies | -11 -10 -10 -------- Run | Scr Mat Min Total Allies . | . . . Largest Group . | . . . Highest-Rated Group . | . . . Highest-Rated Ally . | . . . Total Orders . | . . . Ally Attacks . | . . . Total Damage . | . . . Kills . | . . . Allies Corrupted . | . . . Allies Melted . | . . . Intel | -11 -10 -10 ------- Run | Scr Mat Min Robot Analysis Total 1 | . 1 . Derelict Logs Recovered 1 | . . 1 Drone Launches . | . . . Drone Recoveries . | . . . Exploration | -11 -10 -10 ------------- Run | Scr Mat Min Turns Passed 1780 | 132 1221 427 Spaces Moved 876 | 71 548 257 Core 8 | 8 . . Treads 865 | 60 548 257 Legs . | . . . Wheels 3 | 3 . . Hover . | . . . Flight . | . . . Fastest Speed 50 | 50 160 160 Average Speed 167 | 145 174 160 Slowest Speed 180 | 160 180 160 Overloaded Moves . | . . . Propulsion Burnouts . | . . . Robots Hopped . | . . . Cave-ins Triggered . | . . . Exploration Rate (%) 41 | 4 73 48 Regions Visited 2 Branch Regions 1 Pre-discovered Areas . | . . . Known Exits Taken 1 | . 1 . Unknown Exits Taken 1 | 1 . . Scrap Searched . | . . . Spaces Dug . | . . . Terrain Destroyed . | . . . Melee . | . . . Projectile . | . . . AOE . | . . . Terrain Rammed . | . . . Walls Destroyed . | . . . Machines Disabled . | . . . Actions | -11 -10 -10 --------- Run | Scr Mat Min Total 1052 | 92 696 264 Wait 38 | . 35 3 Move 874 | 70 547 257 Hop . | . . . Pick Up 24 | 9 15 . Fast Attach 10 | 5 5 . Attach 5 | 1 4 . Detach . | . . . Swap 5 | . 5 . Drop 8 | 3 5 . Fire 81 | 4 73 4 Melee . | . . . Ram . | . . . Kick . | . . . Crush 7 | . 7 . Escape Stasis . | . . . Rewire . | . . . Trap . | . . . Miscellaneous . | . . . Route ------- -11/Scrapyard -10/Materials (discovered 4 exits: [*Mat x2] / *Min x2) -10/Mines History --------- Turn | Location | Event 25 | -11/Scrapyard | Discovered new exit (range 16) 133 | -11/Scrapyard | Entered Materials 313 | -10/Materials | Build established: Mutant 374 | -10/Materials | Discovered new exit (range 13) 664 | -10/Materials | Lost 4 parts (2p2w) 859 | -10/Materials | Identified exit to Mines 1081 | -10/Materials | Discovered new exit (range 10) 1172 | -10/Materials | Core integrity fell below 50% 1354 | -10/Materials | Entered Mines 1431 | -10/Mines | Met a Derelict bent on vengeance 1676 | -10/Mines | Learned location of 1 exit from Materials 1776 | -10/Mines | Core integrity fell below 20% 1781 | -10/Mines | Destroyed by G-47 Trooper with Particle Gun Last Messages --------------- 01226_ Acquired Mining Claw. 01231_ Acquired 10 matter. 01300_ Acquired Rocket Launcher. 01306_ Dropped Sensor Array. 01306_ Dropped Heat Sink. 01308_ Acquired Rocket Launcher. 01347_ Dropped Sml. Laser. 01349_ Acquired Mining Laser. LOCATION=MINES GOAL=ESCAPE 01355_ K-01 Serf collects debris. 01355_ K-01 Serf cleans the Laser Drill. 01359_ K-01 Serf collects debris. 01364_ K-01 Serf cleans the Laser Drill. 01378_ K-01 Serf collects debris. 01676_ Acquired derelict log, extracted data. Data stored: Materials exits (x1). 01678_ K-01 Serf collects debris. 01767_ G-34 Mercenary destroyed. 01775_ Acquired 10 matter. Map ----- +----------------------------------------------------+ | ?????????????????????????????????????????????????? | | ?????????????????????????????????????????????????? | | ?????????????????????????????????????????????????? | | ?????????????????????????????????????????????????? | | ?????????????????????????????????????????????????? | | ?????????????????????????????????????????????????? | | ?????????????????????????????????????????????????? | | ?????????????????????????????????????????????????? | | ?????????????????????????????????????????????????? | | ?????????????????????????????????????????????????? | | ?????????????????????????????????????????????????? | | ?????????????????????????????????????????????????? | | ?????????????????????????????????????????????????? | | ?????????????????????????????????????????????????? | | ?????????????????????????????????????????????????? | | ??????????????????#??????????????????????????????? | | ??????????????????# ?????????????????????????????? | | ??????????????????# ?????????????????????????????? | | ??????????????????# ????????????????????????????? | | ??????????????????# ????????????????????????????? | | ??????????????????# ???????????????????????????? | | ??????????????????? ???????????????????????????? | | ????????????????????# ??????????????????????????? | | ????????????????????# #####?????????????????????? | | ????????????????????# g #?????????????????????? | | ????????????????????#####@!#?????????????????????? | | ????????????????????????#= #####?????????????????? | | ????????????????????????# #?????????????????? | | ????????????????????????# #?????????????????? | | ## #????????????????????##### #?????????????????? | | #????????????????????????# #?????????????????? | | ####????????????????????????# #?????????????????? | | ????????????????????????????# #?????????????????? | | ????????? ?????????????????# #?????????????????? | | ???????? ????????????????# #?????????????????? | | ????????# ???????????????# #?????????????????? | | ?????????# #???????????#### #?????????????????? | | ??????????# #?####????## #?????????????????? | | ???????????# ## ##???# ###???????????????? | | #??????????# #??## ##??????????????? | | #####?????## #### #####??????????? | | ##???## ## ##?????????? | | ##### ##????????? | | ####?????? | | #?????? | | ### ### #?????? | | ##?# ##?## ### ### ##?????? | | ###??# ##??## ###?#####??###??????? | | ##????# #???####???????????????????? | | ##?????# #??????????????????????????? | +----------------------------------------------------+ Best States ------------- Heat Dissipation 25 Energy Generation 10 Energy Capacity 250 Matter Stores 300 Matter Capacity 300 Sight Range 16 Terrain Scan Density 10 Evasion (%) 50 Recoil Reduction 2 Item Schematics ----------------- None Robot Schematics ------------------ None Fabricated ------------ Nothing Alien Tech Used ----------------- None Achievements -------------- None Challenges ------------ None Game ------ Seed WarpPropulsionPlating Manual? 0 Play Time 00:13:38 Cumulative 34.9 hours Start 2020.10.29 @ 11:07:03 End 2020.10.29 @ 11:32:22 Sessions 1 Manual Loads 0 Difficulty Rogue Special Mode None Game No. 42 Rogue 42 Adventurer 0 Explorer 0 Win Type - Total 0 Types 0/0/0/0/0/0/0/0/0 Lore% 24 Gallery% 27 Achievement% 23 Wizard Run 0 Options --------- ASCII 0 Keyboard 1 Movement Numpad Keybinds 0 Fullscreen 1 Font 16/Dina Map View 76x50 Tactical HUD 1 Map Filters NONE Filters NONE Steam 1 RUN: 68a7f2fd-2308-4707-b4db-e709ac3d1968